bitfinex-derivatives/quotes_SOLF0:USTF0_20240913
["timestamp","ask_amount","ask_price","bid_price","bid_amount"]
[1726231383837,3.7821,132.2,132.17,15.4126]
[1726231385749,15.4122,132.19,132.16,3.7829]
[1726231385954,3.80327,132.18,132.16,3.7829]
[1726231387348,19.21577,132.18,132.15,3.7832]
[1726231389555,15.43327,132.18,132.15,3.7833]
[1726231390761,15.43327,132.18,132.16,3.783]
[1726231390953,15.43327,132.18,132.14,11.63]
[1726231392146,19.21577,132.18,132.15,3.7831]
[1726231395258,15.43327,132.18,132.15,3.7831]
[1726231396156,3.80327,132.18,132.15,3.7831]
[1726231397161,7.58577,132.18,132.15,3.7831]
[1726231398256,7.58577,132.18,132.15,15.4131]
[1726231398454,3.80327,132.18,132.16,3.783]
[1726231399962,7.58577,132.18,132.15,15.4132]
[1726231402262,3.80327,132.18,132.16,3.783]
[1726231402659,3.80327,132.18,132.15,11.63]
[1726231402867,3.7825,132.18,132.15,15.4131]
[1726231403065,7.53997751,132.18,132.15,15.4131]
[1726231403567,3.75747751,132.18,132.16,3.783]
[1726231403866,3.7823,132.19,132.16,3.783]
[1726231404364,3.72606744,132.18,132.16,3.783]
[1726231405461,3.72606744,132.18,132.15,11.63]
[1726231406259,7.50856744,132.18,132.15,15.4132]
[1726231407462,3.72606744,132.18,132.16,3.783]
[1726231407856,3.7824,132.19,132.16,3.783]
[1726231408266,3.78178928,132.18,132.16,3.783]
[1726231409566,7.56428928,132.18,132.15,15.4132]
[1726231410271,3.78178928,132.18,132.15,15.4132]
[1726231410866,3.7826,132.18,132.15,15.4132]
[1726231411166,11.63,132.17,132.13,3.7838]
[1726231411362,3.7835,132.15,132.11,11.63]
[1726231411558,11.63,132.16,132.11,11.63]
[1726231411765,11.63,132.17,132.12,15.4139]
[1726231411966,1.4518,132.19,132.12,11.63]
[1726231412164,11.63,132.18,132.12,11.63]
[1726231412370,3.7829,132.17,132.13,11.63]
[1726231413166,3.7829,132.17,132.14,3.7836]
[1726231413369,3.7829,132.17,132.13,11.63]
[1726231414871,3.7829,132.17,132.14,3.7836]
[1726231415468,3.7829,132.17,132.13,15.4138]
[1726231418075,3.7832,132.16,132.13,3.7838]
[1726231420171,3.7833,132.15,132.12,15.4141]
[1726231420872,3.7832,132.16,132.12,15.4141]
[1726231421073,11.63,132.17,132.12,15.4141]
[1726231421576,3.7834,132.15,132.12,15.4141]
[1726231422078,3.7832,132.16,132.12,15.4141]
[1726231422377,11.63,132.17,132.12,15.4141]
[1726231422971,11.63,132.16,132.12,3.7841]
[1726231423379,11.63,132.14,132.1,3.7846]
[1726231424072,15.4137,132.14,132.1,15.4146]
[1726231427274,15.4137,132.14,132.1,3.7846]
[1726231427476,3.784,132.13,132.1,3.7846]
[1726231428975,11.63,132.13,132.09,3.7849]
[1726231429176,11.63,132.12,132.08,13.0409]
[1726231429579,11.63,132.12,132.08,11.63]
[1726231429784,3.7846,132.11,132.03,1.3904]
[1726231430081,15.4146,132.11,132.07,11.63]
[1726231430484,3.7848,132.1,132.06,11.63]
[1726231430674,11.63,132.1,132.06,11.63]
[1726231431180,15.415,132.1,132.06,15.4158]
[1726231431983,11.63,132.1,132.05,11.63]
[1726231432778,3.7853,132.09,132.05,15.416]
[1726231432978,3.7853,132.09,132.03,1.3904]
[1726231432979,15.33057567,132.09,132.03,1.3904]
[1726231433281,15.33057567,132.09,132.04,11.63]
[1726231433580,3.7855,132.08,132.05,3.7862]
[1726231435097,11.63,132.06,131.93,244.23217404]
[1726231435286,11.63,132.05,132.0,11.63]
[1726231435584,15.4164,132.05,132.01,3.7872]
[1726231435777,15.4164,132.05,132.01,15.4172]
[1726231435973,11.63,132.05,132.01,11.63]
[1726231436278,3.73646443,132.06,132.02,11.63]
[1726231436472,11.63,132.06,132.02,11.63]
[1726231436679,15.3978983,132.06,132.02,11.63]
[1726231436978,3.7678983,132.06,132.03,11.63]
[1726231437289,3.75767282,132.09,132.05,11.63]
[1726231437479,3.785,132.1,132.07,11.63]
[1726231437784,3.76638341,132.09,132.07,11.63]
[1726231438485,7.55148341,132.09,132.07,11.63]
[1726231439282,3.76638341,132.09,132.07,11.63]
[1726231439587,12.9622,132.13,132.08,11.63]
[1726231439778,3.7844,132.12,132.08,15.4151]
[1726231440689,3.7845,132.11,132.08,15.4151]
[1726231441886,15.414,132.13,132.08,11.63]
[1726231442186,11.63,132.14,132.09,11.63]
[1726231442585,15.4138,132.14,132.1,3.7846]
[1726231442888,11.63,132.14,132.1,3.7846]
[1726231443691,3.7839,132.13,132.1,3.7846]
[1726231450299,3.7839,132.13,132.09,15.415]
[1726231453800,3.7842,132.12,132.09,15.415]
[1726231455405,3.7838,132.14,132.11,11.63]
[1726231456899,3.7838,132.14,132.11,15.4145]
[1726231457598,3.7838,132.14,132.12,3.7842]
[1726231457902,15.4135,132.15,132.12,3.7842]
[1726231458302,3.7835,132.15,132.13,3.7839]
[1726231458602,167.24553188,132.16,132.13,11.63]
[1726231458800,167.24553188,132.16,132.13,15.4137]
[1726231459304,167.24553188,132.16,132.13,11.63]
[1726231459603,167.24553188,132.16,132.14,3.7836]
[1726231461705,163.40467786,132.16,132.14,3.7836]
[1726231461910,163.40467786,132.16,132.13,15.4137]
[1726231463004,163.40467786,132.16,132.13,3.7837]
[1726231463207,3.7834,132.15,132.13,3.7837]
[1726231463603,11.63,132.14,132.13,3.7837]
[1726231463799,159.62147786,132.16,132.09,11.63]
[1726231464000,11.63,132.14,132.09,11.63]
[1726231464398,3.7839,132.13,132.11,3.7843]
[1726231464797,11.63,132.14,132.11,3.7843]
[1726231465001,3.7838,132.14,132.11,3.7843]
[1726231466313,3.7834,132.15,132.12,11.63]
[1726231466509,3.7834,132.15,132.13,11.63]
[1726231466899,3.7832,132.16,132.13,15.4138]
[1726231467917,3.7834,132.15,132.13,11.63]
[1726231468413,3.7832,132.16,132.13,15.4137]
[1726231485622,3.7833,132.15,132.13,15.4137]
[1726231488422,3.84123258,132.17,132.14,15.4135]
[1726231488620,11.63,132.2,132.15,11.63]
[1726231488825,3.7828,132.17,132.15,11.63]
[1726231489126,7.59904772,132.17,132.15,11.63]
[1726231491125,3.81624772,132.17,132.15,15.4133]
[1726231491326,11.63,132.2,132.15,11.63]
[1726231491528,3.7828,132.17,132.15,11.63]
[1726231491718,3.6988946,132.16,132.15,11.63]
[1726231492532,3.6988946,132.16,132.14,15.4135]
[1726231492921,7.4820946,132.16,132.13,15.4139]
[1726231494123,11.63,132.15,132.12,11.63]
[1726231494731,15.4135,132.15,132.12,11.63]
[1726231495120,15.4135,132.15,132.12,15.4141]
[1726231495729,3.7835,132.15,132.12,15.4141]
[1726231499926,15.3288946,132.16,132.11,3.7843]
[1726231500225,15.3288946,132.16,132.12,11.63]
[1726231500833,3.7837,132.14,132.1,15.4146]
[1726231501032,11.63,132.15,132.1,11.63]
[1726231501338,3.7838,132.14,132.1,11.63]
[1726231501637,11.63,132.15,132.1,15.4146]
[1726231501829,3.784,132.13,132.1,15.4146]
[1726231502944,3.7838,132.14,132.1,15.4146]
[1726231504446,3.7841,132.13,132.11,11.63]
[1726231505449,3.7838,132.14,132.11,11.63]
[1726231506640,3.7838,132.14,132.11,15.4144]
[1726231508045,3.7838,132.14,132.11,11.63]
[1726231508750,3.7838,132.14,132.11,15.4144]
[1726231512255,3.7835,132.15,132.12,11.63]
[1726231513255,7.54711523,132.16,132.13,15.4139]
[1726231513644,7.54711523,132.16,132.14,11.63]
[1726231513951,4.1902,132.21,132.15,11.63]
[1726231514145,4.1902,132.21,132.08,4.1275]
[1726231514146,18.42389507,132.17,132.16,11.63]
[1726231514345,1.3348,132.21,132.16,11.63]
[1726231514553,3.7821,132.2,132.18,11.63]
[1726231515354,3.7822,132.19,132.18,11.63]
[1726231517550,3.782,132.2,132.18,15.4125]
[1726231518348,3.7815,132.22,132.19,11.63]
[1726231518856,22.20915903,132.22,132.19,11.63]
[1726231519048,18.42765903,132.21,132.19,11.63]
[1726231519251,3.7815,132.22,132.2,3.7818]
[1726231520654,18.42245615,132.24,132.21,15.4115]
[1726231520843,22.12534702,132.25,132.21,15.4115]
[1726231521041,3.7813,132.23,132.2,15.4118]
[1726231521452,11.63,132.24,132.2,15.4118]
[1726231521648,11.63,132.24,132.2,11.63]
[1726231522459,3.7816,132.21,132.2,11.63]
[1726231523658,3.7823,132.19,132.16,3.7828]
[1726231523858,1.3957,132.23,132.04,572.5726]
[1726231524164,3.7843,132.12,132.09,2.7744]
[1726231524358,11.63,132.13,132.09,14.4044]
[1726231524859,3.7844,132.12,132.09,18.1894]
[1726231525063,15.49219161,132.13,132.09,18.1894]
[1726231525358,7.64629161,132.13,132.1,11.63]
[1726231525662,3.7841,132.13,132.1,11.63]
[1726231525859,3.7838,132.14,132.1,15.4147]
[1726231526057,7.55358417,132.14,132.1,15.4147]
[1726231526763,3.7839,132.13,132.11,11.63]
[1726231534767,3.7842,132.12,132.11,11.63]
[1726231536266,1.3583,132.2,132.11,11.63]
[1726231536469,1.3583,132.2,132.17,11.63]
[1726231536662,11.63,132.21,132.17,11.63]
[1726231536972,3.70626987,132.21,132.18,11.63]
[1726231537265,13.0257,132.23,132.18,11.63]
[1726231537467,11.63,132.21,132.17,11.63]
[1726231537773,11.63,132.2,132.11,5.17334716]
[1726231537973,11.63,132.2,132.16,11.63]
[1726231538167,3.783,132.17,132.16,11.63]
[1726231538364,11.63,132.2,132.17,11.63]
[1726231538667,3.7826,132.18,132.17,11.63]
[1726231538968,11.63,132.21,132.17,11.63]
[1726231539170,3.7825,132.18,132.17,11.63]
[1726231539471,11.63,132.2,132.15,3.7832]
[1726231539672,11.63,132.2,132.15,15.4132]
[1726231539874,3.7829,132.17,132.15,11.63]
[1726231541176,3.7831,132.16,132.15,11.63]
[1726231541376,11.63,132.2,132.15,11.63]
[1726231541980,3.7829,132.17,132.15,11.63]
[1726231543082,3.7831,132.16,132.15,11.63]
[1726231543271,11.63,132.17,132.13,11.63]
[1726231543676,3.7836,132.15,132.13,11.63]
[1726231544980,3.7836,132.15,132.14,11.63]
[1726231545283,12.81089418,132.23,132.14,11.63]
[1726231545481,16.87849418,132.23,132.19,11.63]
[1726231545683,3.7819,132.2,132.11,1.4171]
[1726231545982,3.7819,132.2,132.19,11.63]
[1726231548087,3.7819,132.2,132.18,18.16]
[1726231552577,3.7822,132.19,132.16,21.9429]
[1726231554590,3.7826,132.18,132.16,18.16]
[1726231554902,18.16,132.21,132.14,1.315]
[1726231555390,18.16,132.21,132.14,5.0985]
[1726231555995,3.7829,132.17,132.14,5.0985]
[1726231556286,5.18719418,132.23,132.15,21.9433]
[1726231556486,3.7824,132.19,132.16,18.16]
[1726231556688,5.18719418,132.23,132.16,18.16]
[1726231556987,5.18719418,132.23,132.16,21.943]
[1726231558101,5.18719418,132.23,132.17,3.7827]
[1726231558598,3.7824,132.19,132.17,3.7827]
[1726231558796,5.18719418,132.23,132.16,21.9429]
[1726231559193,3.7825,132.18,132.16,21.9429]
[1726231562192,3.7825,132.18,132.16,18.16]
[1726231563102,18.16,132.21,132.12,3.784]
[1726231563295,1.4008,132.2,132.12,3.784]
[1726231563901,1.4008,132.2,132.11,18.16]
[1726231564596,1.4008,132.2,132.13,3.7839]
[1726231566605,18.16,132.17,132.09,2.7365]
[1726231566801,18.16,132.17,132.09,20.8965]
[1726231567301,3.7839,132.14,132.11,3.7844]
[1726231567498,3.78142035,132.14,132.11,3.7844]
[1726231567706,18.16,132.17,132.09,20.8965]
[1726231567707,18.16,132.17,132.12,3.7841]
[1726231567908,27.1063,132.19,132.12,3.7841]
[1726231568108,3.7834,132.15,132.13,11.63]
[1726231568405,7.65663943,132.15,132.13,11.63]
[1726231568710,3.7836,132.14,132.11,15.4144]
[1726231568910,3.87323943,132.15,132.11,15.4144]
[1726231569114,11.63,132.16,132.12,11.63]
[1726231569115,3.7837,132.14,132.12,11.63]
[1726231569306,7.53010315,132.14,132.12,11.63]
[1726231569508,1.3699,132.18,132.12,15.4141]
[1726231569708,3.7836,132.15,132.12,15.4141]
[1726231570002,1.3817,132.19,132.13,15.4138]
[1726231570199,3.7831,132.16,132.09,2.7365]
[1726231570598,11.63,132.17,132.09,2.7365]
[1726231570808,11.63,132.16,132.09,2.7365]
[1726231571009,11.63,132.15,132.09,2.7365]
[1726231571209,11.63,132.15,132.1,11.63]
[1726231571711,3.84294445,132.14,132.1,11.63]
[1726231572402,3.784,132.13,132.1,11.63]
[1726231572905,3.84294445,132.14,132.1,11.63]
[1726231573711,3.84294445,132.14,132.11,11.63]
[1726231573712,3.7841,132.13,132.11,11.63]
[1726231575322,3.7841,132.13,132.12,11.63]
[1726231575815,3.84294445,132.14,132.12,11.63]
[1726231576010,13.0117,132.19,132.13,11.63]
[1726231576209,13.0117,132.19,132.15,11.63]
[1726231576410,3.7831,132.16,132.15,11.63]
[1726231576611,7.53660246,132.16,132.15,11.63]
[1726231576917,3.7831,132.16,132.15,11.63]
[1726231577220,3.7829,132.17,132.15,11.63]
[1726231577419,3.7829,132.17,132.16,11.63]
[1726231577611,3.7826,132.18,132.16,11.63]
[1726231578421,3.7823,132.19,132.17,11.63]
[1726231578619,3.7823,132.19,132.18,11.63]
[1726231578818,15.48279418,132.23,132.18,11.63]
[1726231579011,3.782,132.2,132.18,11.63]
[1726231581917,3.7822,132.19,132.18,11.63]
[1726231582222,3.7822,132.19,132.17,11.63]
[1726231582614,3.7821,132.2,132.17,11.63]
[1726231582815,3.7821,132.2,132.17,15.4126]
[1726231584011,3.7822,132.19,132.17,15.4126]
[1726231585325,3.85279418,132.23,132.18,11.63]
[1726231585326,3.7817,132.21,132.18,11.63]
[1726231585624,3.7817,132.21,132.2,11.63]
[1726231586222,3.7815,132.22,132.2,11.63]
[1726231586718,3.7816,132.21,132.2,11.63]
[1726231587325,3.782,132.2,132.19,11.63]
[1726231587624,15.50328741,132.24,132.19,11.63]
[1726231587824,3.7818,132.21,132.19,11.63]
[1726231588019,3.73146151,132.2,132.19,11.63]
[1726231588929,3.73146151,132.2,132.19,15.4122]
[1726231589138,3.7815,132.22,132.19,15.4122]
[1726231589737,3.737516,132.22,132.21,11.63]
[1726231589921,3.7812,132.23,132.21,11.63]
[1726231590230,11.63,132.25,132.21,11.63]
[1726231590432,15.3989237,132.25,132.21,11.63]
[1726231590723,3.7813,132.22,132.2,11.63]
[1726231591725,11.63,132.22,132.17,11.63]
[1726231591927,11.63,132.22,132.17,15.4126]
[1726231593027,3.7821,132.2,132.17,15.4126]
[1726231593231,3.7821,132.2,132.18,15.4124]
[1726231594137,3.7817,132.21,132.18,15.4124]
[1726231594327,3.7817,132.21,132.19,11.63]
[1726231594828,3.85292983,132.2,132.19,15.4122]
[1726231595131,4.1294,132.27,132.19,11.63]
[1726231595333,11.63,132.25,132.21,11.63]
[1726231595634,3.7813,132.23,132.21,11.63]
[1726231596034,3.7813,132.22,132.21,11.63]
[1726231596233,2.7298,132.27,132.21,11.63]
[1726231596436,11.63,132.29,132.24,11.63]
[1726231596627,15.45038692,132.29,132.24,11.63]
[1726231596931,11.63,132.26,132.2,2.7879]
[1726231597132,18.38303999,132.3,132.2,14.4179]
[1726231597133,11.63,132.25,132.2,14.4179]
[1726231597439,11.63,132.22,132.14,1.4479]
[1726231597634,3.7821,132.2,132.18,11.63]
[1726231597834,11.63,132.19,132.16,11.63]
[1726231598036,11.63,132.21,132.18,11.63]
[1726231598235,11.63,132.23,132.18,15.4124]
[1726231599433,3.7818,132.21,132.18,15.4124]
[1726231599740,3.70876952,132.2,132.18,15.4124]
[1726231600440,3.70876952,132.2,132.18,11.63]
[1726231602237,3.70876952,132.2,132.18,15.4124]
[1726231602541,3.70876952,132.2,132.19,11.63]
[1726231603738,3.7818,132.21,132.19,11.63]
[1726231604145,7.5931079,132.21,132.19,11.63]
[1726231604336,3.7818,132.21,132.19,11.63]
[1726231604846,7.61089476,132.21,132.19,11.63]
[1726231605643,3.7819,132.2,132.18,11.63]
[1726231612453,1.3787,132.27,132.2,3.7818]
[1726231612636,13.0087,132.27,132.22,11.63]
[1726231613150,3.7809,132.24,132.22,11.63]
[1726231613738,3.7809,132.24,132.21,11.63]
[1726231613951,11.63,132.25,132.2,11.63]
[1726231614747,3.7812,132.23,132.2,11.63]
[1726231614957,11.63,132.25,132.21,11.63]
[1726231615143,11.63,132.26,132.21,11.63]
[1726231615340,3.7807,132.25,132.21,11.63]
[1726231615643,3.7807,132.25,132.22,11.63]
[1726231616250,3.7805,132.25,132.22,11.63]
[1726231616649,3.7805,132.25,132.22,15.4113]
[1726231617252,3.7808,132.24,132.22,11.63]
[1726231617446,1.3787,132.27,132.22,11.63]
[1726231617647,11.63,132.26,132.22,11.63]
[1726231617847,3.7806,132.25,132.22,15.4112]
[1726231619161,7.63312723,132.25,132.22,15.4112]
[1726231619854,3.7809,132.24,132.22,11.63]
[1726231620651,7.58150537,132.24,132.22,11.63]
[1726231620953,3.7806,132.25,132.22,15.4113]
[1726231621157,3.7806,132.25,132.23,11.63]
[1726231621354,3.84790011,132.27,132.23,11.63]
[1726231621653,3.7803,132.26,132.25,11.63]
[1726231622554,3.7803,132.26,132.24,11.63]
[1726231623455,3.7803,132.26,132.24,15.4108]
[1726231623858,7.50656163,132.26,132.24,15.4108]
[1726231624346,7.50656163,132.26,132.25,11.63]
[1726231625758,11.63,132.29,132.25,11.63]
[1726231626055,11.63,132.26,132.2,2.8225]
[1726231626251,3.7811,132.23,132.2,14.4525]
[1726231626446,3.7811,132.23,132.21,3.7816]
[1726231626755,3.7811,132.23,132.2,14.4525]
[1726231627263,15.47883105,132.26,132.21,15.4114]
[1726231627460,11.63,132.26,132.21,15.4114]
[1726231628048,15.5072036,132.26,132.21,15.4114]
[1726231628753,3.7809,132.24,132.21,15.4114]
[1726231629863,3.7809,132.24,132.21,11.63]
[1726231630355,3.7809,132.24,132.21,15.4115]
[1726231630555,1.3893,132.29,132.23,11.63]
[1726231630760,11.63,132.28,132.24,11.63]
[1726231631058,11.63,132.28,132.23,11.63]
[1726231631258,11.63,132.27,132.2,2.8225]
[1726231631461,11.63,132.27,132.21,11.63]
[1726231631661,11.63,132.26,132.21,11.63]
[1726231631858,11.63,132.24,132.2,13.0176]
[1726231632065,11.63,132.24,132.2,11.63]
[1726231632263,5.23690895,132.29,132.21,11.63]
[1726231632461,3.7809,132.24,132.21,11.63]
[1726231633058,1.426,132.31,132.17,1.4332]
[1726231633059,3.74877033,132.28,132.18,7.5647]
[1726231633257,11.63,132.31,132.18,7.5647]
[1726231633454,11.63,132.31,132.25,11.63]
[1726231633660,11.63,132.3,132.25,11.63]
[1726231634461,3.7798,132.28,132.25,11.63]
[1726231634660,3.7798,132.28,132.25,15.4104]
[1726231634858,3.7796,132.29,132.27,11.63]
[1726231635058,11.63,132.3,132.18,7.5647]
[1726231635263,11.63,132.3,132.25,11.63]
[1726231635463,3.7801,132.27,132.25,11.63]
[1726231635963,3.7801,132.27,132.24,11.63]
[1726231637164,3.7801,132.27,132.26,11.63]
[1726231639467,3.7797,132.28,132.26,11.63]
[1726231640165,3.7794,132.29,132.26,15.4101]
[1726231640366,1.3124,132.3,132.26,15.4101]
[1726231640768,3.7796,132.29,132.26,15.4101]
[1726231644283,3.7792,132.3,132.28,11.63]
[1726231644881,3.7792,132.3,132.28,15.4096]
[1726231645585,1.3721,132.33,132.29,3.7791]
[1726231645881,5.22959943,132.33,132.29,15.4091]
[1726231646187,1.3721,132.33,132.29,15.4091]
[1726231646383,3.7789,132.31,132.29,15.4091]
[1726231647470,3.7789,132.31,132.29,11.63]
[1726231647672,11.63,132.32,132.27,11.63]
[1726231648084,3.779,132.31,132.28,11.63]
[1726231648384,16.82442811,132.33,132.28,11.63]
[1726231648888,3.7789,132.31,132.29,15.4092]
[1726231649387,7.5528,132.4,132.3,11.63]
[1726231649579,11.63,132.37,132.32,11.63]
[1726231650186,3.7775,132.36,132.32,11.63]
[1726231650487,3.75586144,132.36,132.32,11.63]
[1726231650683,11.63,132.37,132.32,11.63]
[1726231651087,3.7781,132.34,132.32,11.63]
[1726231651391,7.48706989,132.34,132.32,15.4084]
[1726231651583,3.7781,132.34,132.32,15.4084]
[1726231652285,3.7464075,132.35,132.32,11.63]
[1726231652885,3.778,132.34,132.32,15.4083]
[1726231653585,3.778,132.34,132.33,11.63]
[1726231653993,3.7778,132.35,132.33,15.4082]
[1726231654684,7.59585433,132.35,132.33,15.4082]
[1726231655688,3.7776,132.36,132.34,3.7779]
[1726231655893,11.63,132.38,132.33,11.63]
[1726231656281,3.7775,132.36,132.34,15.4078]
[1726231656487,15.724,132.39,132.34,11.63]
[1726231656693,2.7253,132.39,132.35,11.63]
[1726231656889,2.7253,132.39,132.3,2.7958]
[1726231656890,3.7773,132.36,132.3,2.7958]
[1726231657096,2.7253,132.39,132.34,11.63]
[1726231658090,1.3279,132.39,132.35,3.7776]
[1726231658286,12.9579,132.39,132.3,2.7958]
[1726231658692,12.9579,132.39,132.34,11.63]
[1726231659194,3.7772,132.37,132.34,15.4076]
[1726231659789,3.7772,132.37,132.35,11.63]
[1726231659989,3.7772,132.37,132.35,15.4076]
[1726231661888,1.3724,132.42,132.36,15.4073]
[1726231662093,13.0024,132.42,132.37,11.63]
[1726231662500,3.7764,132.4,132.39,11.63]
[1726231662996,3.7757,132.42,132.39,11.63]
[1726231663198,11.63,132.43,132.33,1.3495]
[1726231663401,11.63,132.43,132.37,11.63]
[1726231663596,3.7766,132.39,132.37,11.63]
[1726231663997,11.63,132.43,132.36,3.7771]
[1726231664197,3.7767,132.39,132.37,11.63]
[1726231664690,3.7767,132.39,132.37,15.407]
[1726231665090,3.7763,132.4,132.37,11.63]
[1726231665294,11.63,132.42,132.37,11.63]
[1726231665708,3.7768,132.38,132.37,11.63]
[1726231667007,3.7768,132.38,132.36,11.63]
[1726231667308,11.63,132.4,132.35,11.63]
[1726231667511,5.12168972,132.44,132.35,11.63]
[1726231667700,3.7772,132.37,132.35,11.63]
[1726231667900,1.3237,132.44,132.35,15.4074]
[1726231668196,11.63,132.4,132.35,15.4074]
[1726231668505,3.7772,132.37,132.35,15.4074]
[1726231668705,7.61373264,132.37,132.35,15.4074]
[1726231668904,7.61373264,132.37,132.35,3.7774]
[1726231669205,3.7775,132.36,132.35,11.63]
[1726231669703,3.7772,132.37,132.35,11.63]
[1726231669911,7.61610853,132.37,132.35,11.63]
[1726231670097,5.06274171,132.44,132.35,15.4076]
[1726231670408,11.63,132.39,132.35,11.63]
[1726231670811,3.7772,132.37,132.35,11.63]
[1726231671111,7.46569648,132.37,132.35,11.63]
[1726231671307,15.31849648,132.37,132.3,2.7958]
[1726231671510,3.68849648,132.37,132.33,11.63]
[1726231671804,7.5514,132.42,132.34,11.63]
[1726231671805,2.7509,132.41,132.34,11.63]
[1726231672110,11.63,132.4,132.35,11.63]
[1726231672415,11.63,132.4,132.3,2.7958]
[1726231672416,3.7766,132.39,132.37,11.63]
[1726231672911,2.7509,132.41,132.36,11.63]
[1726231673114,3.7769,132.38,132.36,11.63]
[1726231673511,3.7769,132.38,132.37,11.63]
[1726231677314,3.7769,132.38,132.36,11.63]
[1726231677515,3.7769,132.38,132.37,11.63]
[1726231677906,3.7767,132.39,132.37,11.63]
[1726231678317,2.7509,132.41,132.37,11.63]
[1726231678719,3.7766,132.39,132.37,11.63]
[1726231678911,2.7509,132.41,132.36,3.7772]
[1726231679116,2.7509,132.41,132.37,11.63]
[1726231679311,3.7767,132.39,132.37,11.63]
[1726231680416,3.7768,132.38,132.37,11.63]
[1726231685415,11.63,132.39,132.3,2.7958]
[1726231685622,11.63,132.39,130.79,136.0606867]
[1726231685623,11.63,132.32,132.19,7.573]
[1726231685811,11.63,132.32,132.24,1.3662]
[1726231685812,15.47324045,132.32,132.24,1.3662]
[1726231686008,3.7801,132.27,132.26,11.63]
[1726231686618,3.7797,132.28,132.26,11.63]
[1726231686915,3.7797,132.28,132.24,1.3662]
[1726231687219,13.0005,132.31,132.26,11.63]
[1726231687521,3.79411832,132.3,132.28,11.63]
[1726231687708,1.3705,132.31,132.28,11.63]
[1726231687909,5.20958396,132.31,132.28,11.63]
[1726231688821,3.7793,132.29,132.28,11.63]
[1726231690124,3.7797,132.28,132.26,3.78]
[1726231690426,3.7797,132.28,132.27,11.63]
[1726231699329,3.83908396,132.31,132.27,11.63]
[1726231699521,1.3247,132.35,132.3,11.63]
[1726231699720,1.3247,132.35,132.32,11.63]
[1726231699924,3.7782,132.33,132.32,11.63]
[1726231702935,3.7786,132.32,132.3,3.7789]
[1726231703136,16.72512473,132.35,132.3,11.63]
[1726231703530,3.779,132.31,132.3,11.63]
[1726231705839,3.7784,132.33,132.3,15.4091]
[1726231706034,3.7784,132.33,132.32,11.63]
[1726231706226,3.77042473,132.35,132.32,11.63]
[1726231706432,3.7781,132.34,132.33,11.63]
[1726231708735,7.51950275,132.34,132.33,11.63]
[1726231710931,3.74140275,132.34,132.32,11.63]
[1726231711131,1.3404,132.36,132.32,11.63]
[1726231711533,19.7908163,132.36,132.32,11.63]
[1726231711733,18.4504163,132.35,132.32,11.63]
[1726231711935,3.7783,132.33,132.32,11.63]
[1726231712235,3.77589596,132.35,132.32,11.63]
[1726231712437,1.3404,132.36,132.33,11.63]
[1726231712839,3.778,132.34,132.33,11.63]